[Event "21st IPCA World Championship 2022"]
[Site "Ashdod"]
[Date "2022.05.09"]
[Round "1.1"]
[White "Yarmonov, Igor"]
[Black "Shapiro, Benny"]
[Result "1-0"]
[ECO "D85"]
[WhiteElo "2394"]
[BlackElo "1884"]
[Annotator "TA"]
[PlyCount "137"]
[EventDate "2022.05.09"]
[EventType "swiss"]
[EventCountry "ISR"]
[SourceTitle "playchess.com"]
[Source "ChessBase"]
[SourceQuality "1"]
[TimeControl "5400+30"]

{[%evp 9,137,12,24,18,46,48,63,26,52,4,2,4,12,22,59,36,22,-17,-13,-6,8,20,19,16,10,19,16,12,61,16,14,10,14,20,56,59,46,1,7,0,147,158,149,131,142,142,134,39,40,43,121,118,181,162,219,219,199,137,131,122,116,122,121,71,162,170,165,13,13,10,8,8,9,11,15,0,0,0,0,0,0,0,26,14,12,12,16,17,68,63,108,78,79,65,69,43,64,15,15,8,15,15,355,420,411,411,391,370,1434,1451,1268,1153,10768,6079,29967,29969,29973,29974,29974,29974,29974,29976,29978,29979,29979,29978,29978,29979,29974,29972]} 1. d4 {[%emt 0:00:11]} Nf6 {[%emt 0:00:12]} 2. c4 {[%emt 0:00:13]} g6 {[%emt 0:00:09]} 3. Nc3 {[%emt 0:00:28]} d5 {[%emt 0:00:11]} 4. cxd5 {[%emt 0:01:04]} Nxd5 {[%emt 0:00:14]} 5. Bd2 {[%emt 0:05:21]} Nxc3 {[%emt 0:03:59]} 6. Bxc3 {[%emt 0:01:01] D85: Exchange Grünfeld: Unusual White 7th moves and lines with 7 Nf3.} Qd5 {[%emt 0:00:29]} 7. f3 {[%emt 0:01:09] [#]} f5 $146 {[%emt 0:00:37] Against e4} ({Predecessor:} 7... Bg7 8. e4 Qd7 9. Bc4 b5 10. Bb3 a5 11. a3 c5 12. d5 Bxc3+ 13. bxc3 a4 {1-0 (34) Akesson,R (2493)-Fogarasi,T (2426) Budapest 2009}) 8. Qd3 {[%emt 0:01:32] White is slightly better.} f4 {[%emt 0:00:58]} 9. Qe4 {[%emt 0:02:44]} (9. g3 $14) 9... Qxe4 $11 {[%emt 0:02:33]} 10. fxe4 {[%emt 0:00:04]} Bg7 {[%emt 0:01:19]} 11. Nf3 {[%emt 0:00:33]} c5 {[%emt 0:03:13]} 12. e3 {[%emt 0:01:26]} (12. dxc5 Bxc3+ 13. bxc3 Nd7 $11) 12... fxe3 {[%emt 0:02:22]} 13. dxc5 {[%emt 0:04:56]} Bxc3+ {[%emt 0:02:00]} 14. bxc3 {[%emt 0:00:06]} O-O {[%emt 0:02:19]} 15. Bc4+ {[%emt 0:00:12]} Kg7 {[%emt 0:01:57]} 16. Ke2 {[%emt 0:01:33]} Nd7 {[%emt 0:01:59]} 17. c6 {[%emt 0:00:28]} bxc6 {[%emt 0:00:44]} 18. Kxe3 {[%emt 0:00:06]} c5 {[%emt 0:02:40]} (18... Nb6 $11 19. Bd3 Be6) 19. Rab1 {[%emt 0:01:55]} Nb6 {[%emt 0:01:41]} 20. Bb3 {[%emt 0:00:05]} Bd7 {[%emt 0:02:28]} 21. Ne5 {[%emt 0:01:03]} Kf6 {[%emt 0:03:26]} 22. Nxd7+ {[%emt 0:02:18]} Nxd7 {[%emt 0:00:34]} 23. Bd5 {[%emt 0:00:28]} (23. Rhd1 {is more complex.} Ne5 24. Rd5 Ng4+ 25. Kf4) 23... Rab8 {[%emt 0:01:04]} 24. Rxb8 {[%emt 0:01:49]} (24. Rhf1+ {looks sharper.} Ke5 25. Rxf8 Rxb1 26. Re8) 24... Nxb8 {[%emt 0:01:41][%mdl 4096] Endgame KRB-KRN} (24... Rxb8 $11 25. Rf1+ Ke5) 25. Rf1+ $16 {[%emt 0:03:52]} Kg7 {[%emt 0:00:06]} 26. Rb1 {[%emt 0:00:28]} Kf6 {[%emt 0:05:05]} 27. Rb7 {[%emt 0:00:40] White is more active.} e6 {[%emt 0:01:54]} 28. e5+ {[%emt 0:00:21]} ({Weaker is} 28. Rxh7 exd5 29. exd5 Re8+ 30. Kd3 Re7 $17) (28. Bc4 $16) 28... Kxe5 $14 {[%emt 0:00:51]} 29. Bf3 {[%emt 0:00:04]} a6 {[%emt 0:01:49]} (29... Rd8 $14) 30. Rxh7 $16 {[%emt 0:00:26]} Rc8 {[%emt 0:03:17]} (30... g5 $16) 31. Ra7 {[%emt 0:01:48]} c4 {[%emt 0:02:23]} (31... Nc6 $142 32. Rxa6 Ne7) 32. Ra8 $18 {[%emt 0:01:17]} Rd8 {[%emt 0:00:41]} 33. Be4 {[%emt 0:00:12] Prevents Rd3+.} (33. Be2 $18) 33... g5 $16 {[%emt 0:00:29]} 34. h3 {[%emt 0:00:22]} Rd1 {[%emt 0:03:01]} 35. Bc2 $1 {[%emt 0:10:49]} ({But not} 35. Rxb8 Re1+ 36. Kf2 Rxe4 $14) 35... Rd8 {[%emt 0:00:21]} 36. a4 {[%emt 0:00:23]} (36. g3 $142) 36... Rf8 {[%emt 0:01:39]} (36... Nc6 $16 37. Rxd8 (37. Rxa6 Ne7 $14) 37... Nxd8) 37. a5 $18 {[%emt 0:06:47]} Nd7 {[%emt 0:01:06] [#]} 38. Rxa6 {[%emt 0:01:01]} (38. Rxf8 $1 $18 Nxf8 39. g3) 38... Nf6 $11 {[%emt 0:00:28]} 39. Rc6 {[%emt 0:08:18]} Nd5+ {[%emt 0:01:20]} 40. Kd2 {[%emt 0:00:03]} Rf2+ {[%emt 0:01:07]} 41. Kc1 {[%emt 0:00:04]} Ne3 {[%emt 0:02:48]} 42. Bb1 {[%emt 0:03:07]} Rf1+ {[%emt 0:03:20]} 43. Kd2 {[%emt 0:00:03]} Nd5 {[%emt 0:02:53]} 44. Bh7 {[%emt 0:01:18]} Rf2+ {[%emt 0:01:33]} 45. Kc1 {[%emt 0:03:11]} Ra2 {[%emt 0:01:49]} 46. Rxc4 {[%emt 0:02:13]} (46. Rc5 {feels hotter.} Rxg2 47. Bc2 Rg3 48. a6) 46... Rxa5 {[%emt 0:00:58]} 47. Rg4 {[%emt 0:05:56]} Kf6 {[%emt 0:00:53]} 48. Kd2 {[%emt 0:00:23]} Kg7 {[%emt 0:02:11]} (48... Ra3 $11) 49. Bc2 {[%emt 0:01:31]} Nf6 {[%emt 0:01:10]} 50. Rb4 {[%emt 0:00:16]} Nd5 {[%emt 0:00:59]} 51. Re4 {[%emt 0:02:05]} Kf6 {[%emt 0:01:41]} 52. Bb3 {[%emt 0:01:50]} Kf5 {[%emt 0:01:46]} 53. Bxd5 {[%emt 0:02:07]} (53. Ra4 $14 {should be considered.} Rc5 54. Bc4) 53... exd5 $14 {[%emt 0:00:39] KR-KR} 54. Rg4 {[%emt 0:02:10]} Ra2+ {[%emt 0:02:59]} 55. Kd3 {[%emt 0:00:13]} Ra3 $2 {[%emt 0:00:55][%mdl 8192] [#] Loses the game.} (55... Rf2 $11 {and Black stays safe.}) 56. Kd4 $1 $18 {[%emt 0:01:15]} Ra5 {[%emt 0:01:29]} 57. Rg3 {[%emt 0:00:08]} Kf6 {[%emt 0:00:37]} 58. Re3 {[%emt 0:00:25]} Ra2 $2 {[%emt 0:01:26]} (58... Kg6 59. Re6+ Kf7) 59. Kxd5 {[%emt 0:02:59]} Rd2+ {[%emt 0:01:04]} 60. Kc6 {[%emt 0:00:09]} Rxg2 {[%emt 0:00:20]} 61. c4 {[%emt 0:00:12][%cal Bc3c4,Bc4c5,Bc5c6,Bc6c7][%mdl 32] Black must now prevent c5.} g4 {[%emt 0:01:39]} 62. hxg4 {[%emt 0:00:22] White mates.} Rxg4 {[%emt 0:00:03]} 63. c5 {[%emt 0:00:03]} Rg1 {[%emt 0:00:45]} 64. Kd7 {[%emt 0:00:52]} Rd1+ {[%emt 0:00:20]} 65. Kc7 {[%emt 0:00:16]} Rd5 {[%emt 0:00:45]} 66. c6 {[%emt 0:00:24]} Rd1 {[%emt 0:00:17]} 67. Kb7 {[%emt 0:00:11]} Rb1+ {[%emt 0:00:13]} 68. Kc8 {[%emt 0:00:30]} Rc1 {[%emt 0:00:21]} 69. c7 {[%emt 0:00:30] Weighted Error Value: White=0.20 (precise) /Black=0.30} 1-0

[Event "21st IPCA World Championship 2022"]
[Site "Ashdod"]
[Date "2022.05.09"]
[Round "1.2"]
[White "Alperovich, Asher"]
[Black "Mikheev, Stanislav"]
[Result "0-1"]
[ECO "D83"]
[WhiteElo "1865"]
[BlackElo "2333"]
[Annotator "TA"]
[PlyCount "64"]
[EventDate "2022.05.09"]
[EventType "swiss"]
[EventCountry "ISR"]
[SourceTitle "playchess.com"]
[Source "ChessBase"]
[SourceQuality "1"]
[TimeControl "5400+30"]

{[%evp 10,64,20,21,27,28,27,0,21,23,19,-49,-43,-61,-16,-47,-41,-31,-35,-53,-52,-162,-59,-167,-175,-328,-305,-331,-325,-324,-316,-309,-297,-327,-316,-506,-511,-495,-497,-915,-903,-1189,-1189,-1243,-1228,-1179,-1145,-2481,-2485,-2410,-2105,-5421,-5406,-29970,-29970,-2316,-1771]} 1. d4 {[%emt 0:00:03]} Nf6 {[%emt 0:00:08]} 2. c4 {[%emt 0:00:13]} g6 {[%emt 0:00:10]} 3. Nc3 {[%emt 0:02:47]} d5 {[%emt 0:00:12]} 4. Bf4 {[%emt 0:00:18]} Bg7 {[%emt 0:00:17]} 5. Rc1 {[%emt 0:00:12]} O-O {[%emt 0:02:13]} 6. e3 {[%emt 0:00:14]} Be6 {[%emt 0:05:05] D83: Grünfeld: 4 Bf4 Bg7 5 e3 0-0.} 7. c5 {[%emt 0:05:41]} c6 {[%emt 0:02:10]} 8. h3 {[%emt 0:01:48]} b6 {[%emt 0:05:19] The position is equal.} 9. b4 {[%emt 0:01:37]} a5 {[%emt 0:00:43]} 10. a3 {[%emt 0:04:56]} ({White should try} 10. Na4 $11) 10... axb4 $15 {[%emt 0:05:10]} 11. axb4 {[%emt 0:00:07] [#]} Ra3 $146 {[%emt 0:03:21]} (11... Ne4 $5 {[%cal Rb6c5]} 12. Bd3 Na6 $11) ({Predecessor:} 11... bxc5 12. bxc5 Ne4 13. Nxe4 dxe4 14. Ne2 Ra3 15. Nc3 Qa5 16. Qd2 Nd7 17. Nxe4 Qa7 {0-1 (50) Bachmann,A (2599)-Yashmetov,M (2298) Chess.com INT 2020}) 12. Bd3 {[%emt 0:05:42]} bxc5 {[%emt 0:07:47]} 13. bxc5 {[%emt 0:02:34]} Qa5 {[%emt 0:00:05]} 14. Qd2 {[%emt 0:25:45]} Na6 {[%emt 0:00:24]} 15. Nf3 {[%emt 0:04:18]} (15. Nge2 $15) 15... Nd7 {[%emt 0:06:16]} (15... Nb4 $19 16. Bb1 Ne4 17. Nxe4 dxe4 18. Bxe4 Ra2) 16. Nb1 {[%emt 0:12:21]} Nb4 $19 {[%emt 0:01:41]} 17. Be2 {[%emt 0:04:43]} (17. Bc2 Ra2 18. Nc3 Nxc2+ 19. Rxc2 Rxc2 20. Qxc2) 17... Ra2 {[%emt 0:01:40]} 18. Bc7 {[%emt 0:02:50]} Qxc7 {[%emt 0:03:48]} ({Not} 18... Rxd2 19. Bxa5 Rb2 20. Bxb4 Rxb4 21. Nbd2 $11) 19. Qxb4 {[%emt 0:00:21]} Rb8 {[%emt 0:00:05]} 20. Qc3 {[%emt 0:01:52]} Rbb2 {[%emt 0:07:07]} 21. Nbd2 {[%emt 0:01:08] [#]} Nf6 $1 {[%emt 0:00:29] Strongly threatening ...Ne4.} 22. Bd3 {[%emt 0:04:36] [#] Inhibits Ne4.} (22. Bd1 Ne4 23. Nxe4 dxe4 24. Nd2 Bxd4 25. Qxd4 Rxd2 26. Qxd2 Rxd2 27. Kxd2) 22... Ne4 $1 {[%emt 0:08:13]} 23. Bxe4 {[%emt 0:15:45]} dxe4 {[%emt 0:00:20]} 24. Ng5 {[%emt 0:01:14]} (24. Nxe4 $142 Rb3 25. Qd2 Rxd2 26. Nexd2) 24... Rxd2 {[%emt 0:00:17]} 25. Qxd2 {[%emt 0:00:27]} Rxd2 {[%emt 0:00:07]} 26. Kxd2 {[%emt 0:01:00]} Qa5+ {[%emt 0:01:07]} 27. Rc3 {[%emt 0:00:36]} Bd5 {[%emt 0:00:10] Threatens to win with ...e5.} 28. h4 {[%emt 0:00:22]} e5 {[%emt 0:00:24]} 29. Rb1 {[%emt 0:00:58]} Bf6 {[%emt 0:00:31]} 30. Rb8+ {[%emt 0:00:18]} Kg7 {[%emt 0:00:07]} 31. Kc2 {[%emt 0:00:35]} exd4 {[%emt 0:00:09]} 32. exd4 {[%emt 0:00:02]} Bxd4 {[%emt 0:00:13] White did not feel at home in the position after the opening.  Weighted Error Value: White=1.30/Black=0.08 (flawless)} 0-1

[Event "21st IPCA World Championship 2022"]
[Site "Ashdod"]
[Date "2022.05.09"]
[Round "1.3"]
[White "Zilberman, Yaacov"]
[Black "Aleksandrova, Aleksandra"]
[Result "1-0"]
[ECO "D31"]
[WhiteElo "2315"]
[BlackElo "1687"]
[Annotator "TA"]
[PlyCount "72"]
[EventDate "2022.05.09"]
[EventType "swiss"]
[EventCountry "ISR"]
[SourceTitle "playchess.com"]
[Source "ChessBase"]
[SourceQuality "1"]
[TimeControl "5400+30"]

{[%evp 9,72,-8,29,17,36,28,47,47,75,75,97,91,84,86,129,124,131,98,154,144,217,202,208,79,93,13,9,-159,-154,-156,-157,-264,-262,-278,-276,-663,-606,-747,-746,-708,-502,-488,-475,-380,-190,-176,-127,-135,19,14,271,265,540,538,779,771,741,680,550,551,1066,604,941,647,29993]} 1. d4 {[%emt 0:00:06]} d5 {[%emt 0:00:00]} 2. c4 {[%emt 0:00:10]} e6 {[%emt 0:00:00]} 3. Nc3 {[%emt 0:00:10]} c6 {[%emt 0:00:00]} 4. e3 {[%emt 0:00:25]} Bd6 {[%emt 0:00:05]} 5. f4 {[%emt 0:00:42]} Nd7 {[%emt 0:01:44]} 6. Nf3 {[%emt 0:00:20] D31: Queen's Gambit Declined: Semi-Slav without ...Nf6 (+ Marshall Gambit and Noteboom) and Exchange Variation lines without ...Nf6.} Ne7 {[%emt 0:00:51]} 7. Bd3 {[%emt 0:00:36] [#]} dxc4 $146 {[%emt 0:06:41]} ({Predecessor:} 7... Nf6 8. O-O O-O 9. Ne5 Bd7 10. Qf3 h6 11. g4 dxc4 12. Bxc4 Ned5 13. Nxd7 Nxd7 {1-0 (35) Bouguern,A (1464)-Tittarelli,A (1173) LSS email 2012}) 8. Bxc4 {[%emt 0:00:14] White is slightly better.} Nd5 {[%emt 0:00:06]} 9. O-O {[%emt 0:02:07]} Qa5 {[%emt 0:03:58]} 10. Bd2 {[%emt 0:01:05] Threatens to win with Nxd5.} Nxc3 {[%emt 0:01:59]} 11. bxc3 {[%emt 0:02:10][%cal Of4f5]} Qh5 {[%emt 0:01:03]} 12. Rb1 {[%emt 0:02:20]} O-O {[%emt 0:05:58]} 13. Bd3 {[%emt 0:01:25]} f6 {[%emt 0:04:22]} (13... c5 $142) 14. e4 $16 {[%emt 0:02:40]} e5 {[%emt 0:04:34]} (14... Bc7 $16 15. Qb3 Nb6) 15. fxe5 {[%emt 0:08:19]} fxe5 {[%emt 0:01:42]} 16. Qb3+ {[%emt 0:04:45]} (16. Bc4+ $18 {is more deadly.} Kh8 17. Ng5 Qxd1 18. Rbxd1 (18. Rfxd1 b5 $16)) 16... Kh8 {[%emt 0:00:41]} 17. Ng5 {[%emt 0:02:09] White is more active.} (17. Be3 $16) 17... Nf6 $11 {[%emt 0:03:36]} 18. h3 $2 {[%emt 0:03:26]} (18. Rbe1 $11) 18... h6 $1 $17 {[%emt 0:05:19]} 19. Ne6 {[%emt 0:04:22]} Re8 {[%emt 0:01:14]} 20. d5 {[%emt 0:00:49]} (20. Nxg7 $17 Kxg7 21. Rf3) 20... cxd5 $1 $19 {[%emt 0:05:30]} 21. exd5 {[%emt 0:00:22] [#]} e4 $1 {[%emt 0:23:36]} 22. Bb5 $2 {[%emt 0:00:41]} (22. Bf4 Bxe6 23. Bxd6 Bxd5 24. Bc4) 22... Bxe6 {[%emt 0:05:41]} 23. dxe6 {[%emt 0:00:11]} Qc5+ {[%emt 0:06:49]} (23... Qe5 24. Bf4 Qc5+ 25. Kh1 Bxf4 26. Rxf4 $17 (26. Bxe8 $2 Bc7 $19)) 24. Kh1 {[%emt 0:00:36][%cal Bg1h1,Bh1g2,Bg2g3,Bg3h2][%mdl 32]} e3 {[%emt 0:00:22][%cal Oc5e5] ( -> ...Qe5!)} 25. Be1 {[%emt 0:05:08] [#]} Qe5 $1 {[%emt 0:04:25][%csl Gd6][%cal Re5h2]} 26. g3 {[%emt 0:00:30]} e2 {[%emt 0:02:53]} (26... Ne4 $142 27. Qc2 (27. Bxe8 $2 Nxg3+ 28. Bxg3 Qxg3 $19) 27... Qxe6) 27. Rf3 {[%emt 0:02:26]} Rxe6 {[%emt 0:04:19]} ({And not} 27... Qe4 28. Kg2 $15) (27... Rf8 $19 28. e7 Bxe7) 28. Rb2 $17 {[%emt 0:01:39] [#]} Qe4 $2 {[%emt 0:01:58]} (28... Bc5 $1 $17 {And now ...Qd6 would win.} 29. Rxe2 Qxe2 30. Bxe2 Rxe2) 29. Kg2 $1 $11 {[%emt 0:01:44]} Nd5 $2 {[%emt 0:01:16][%mdl 8192] Loses the game.} (29... Bxg3 $11 {and Black is okay.} 30. Rxe2 Qxe2+ 31. Bxe2 Rxe2+ 32. Bf2 (32. Kxg3 Rxe1 33. Qxb7 Ne4+ 34. Kh4 Re8 $11) 32... Bxf2 33. Rxf2 Re7) 30. Rxe2 $18 {[%emt 0:00:36] Dancing on a razor blade.} Nf4+ $2 {[%emt 0:03:44]} (30... Qxe2+ 31. Bxe2 Rxe2+ 32. Bf2 Nf6 33. Qxb7 Rd8) 31. gxf4 {[%emt 0:00:18] White is clearly winning.} Rg6+ {[%emt 0:00:01]} 32. Bg3 {[%emt 0:00:36]} Rxg3+ {[%emt 0:01:25]} 33. Kxg3 {[%emt 0:00:21]} Qg6+ {[%emt 0:00:10]} 34. Kh2 {[%emt 0:01:43] Hoping for Re6.} Rf8 {[%emt 0:00:02]} 35. Qe6 {[%emt 0:01:24]} Rf6 {[%emt 0:01:02]} 36. Qe8+ {[%emt 0:00:21]} Rf8 {[%emt 0:00:01] Weighted Error Value: White=0.67/Black=0.54} 1-0

[Event "21st IPCA World Championship 2022"]
[Site "Ashdod"]
[Date "2022.05.09"]
[Round "1.4"]
[White "Mekus, Manuela"]
[Black "Obodchuk, Andrei"]
[Result "0-1"]
[ECO "A07"]
[WhiteElo "1644"]
[BlackElo "2295"]
[Annotator "TA"]
[PlyCount "52"]
[EventDate "2022.05.09"]
[EventType "swiss"]
[EventCountry "ISR"]
[SourceTitle "playchess.com"]
[Source "ChessBase"]
[SourceQuality "1"]
[TimeControl "5400+30"]

{[%evp 15,52,-20,0,-24,-26,-61,-32,-104,-93,-125,-127,-115,-112,-240,-237,-224,-232,-251,-260,-336,-320,-317,-211,-433,-241,-370,-356,-584,-349,-710,-706,-708,-710,-707,-664,-2070,-1251,-29983,-11860]} 1. e4 {[%emt 0:00:04]} c5 {[%emt 0:00:05]} 2. d3 {[%emt 0:00:16]} Nc6 {[%emt 0:01:09]} 3. Nf3 {[%emt 0:00:38]} g6 {[%emt 0:00:15]} 4. g3 {[%emt 0:00:15]} Bg7 {[%emt 0:00:04]} 5. Bg2 {[%emt 0:00:10]} e5 {[%emt 0:00:13]} 6. O-O {[%emt 0:00:40]} Nge7 {[%emt 0:00:05]} 7. Nbd2 {[%emt 0:00:41]} O-O {[%emt 0:00:20]} 8. c3 {[%emt 0:00:51]} d5 {[%emt 0:01:02]} 9. Qe2 {[%emt 0:03:21] A07: Réti Opening: New York and Capablanca Systems.} h6 {[%emt 0:00:44]} 10. h3 {[%emt 0:03:11] [#]} Be6 $146 {[%emt 0:00:30]} ({Predecessor:} 10... Re8 11. Rd1 Be6 12. Nb3 b6 13. Be3 Qc7 14. Rac1 a5 15. c4 d4 16. Bd2 a4 {0-1 (43) Cardone,B-Chachere,L (2265) Shoquoquon 1994}) 11. Nh2 {[%emt 0:00:48]} ({White should try} 11. exd5 $15 Nxd5 12. Nc4) 11... Qd7 $17 {[%emt 0:01:19]} 12. g4 {[%emt 0:06:25]} f5 {[%emt 0:01:46] Black is more active.} 13. exf5 {[%emt 0:04:47]} gxf5 {[%emt 0:00:07]} 14. f3 {[%emt 0:00:28]} (14. f4 $17 {might work better.}) 14... Ng6 $19 {[%emt 0:00:59]} 15. Nb3 {[%emt 0:01:26]} b6 {[%emt 0:00:13]} 16. Be3 {[%emt 0:03:44]} d4 {[%emt 0:03:20]} 17. cxd4 {[%emt 0:03:19]} exd4 {[%emt 0:00:05]} (17... Nxd4 $2 18. Nxd4 exd4 19. Bd2 $19) (17... cxd4 $2 18. Bd2 $19) 18. Bd2 {[%emt 0:01:07]} Rae8 {[%emt 0:00:11] [#] Threatens to win with ...Bxb3.} 19. Qd1 {[%emt 0:00:19]} (19. f4) 19... Qc7 {[%emt 0:03:33]} (19... Nce5 $142 20. Bc1 Qb5) 20. Qc1 {[%emt 0:01:46]} (20. f4 $142) 20... Nh4 {[%emt 0:16:16]} (20... Qg3 $2 21. Be1 Qd6 22. f4 $19) 21. Bxh6 $2 {[%emt 0:01:35]} (21. Bf4 {keeps fighting.} Qd8 22. Bxh6) 21... Bxb3 {[%emt 0:03:00]} 22. Bxg7 $2 {[%emt 0:01:09]} (22. Bf4 Qf7 23. axb3) 22... Re2 {[%emt 0:00:33]} ({Inferior is} 22... Kxg7 23. Qg5+ Ng6 24. gxf5 (24. axb3 Qf4 $17) 24... Rxf5 25. Qxf5 $11) (22... Qg3 23. Rf2 Kxg7 24. Nf1 $15) 23. Rf2 {[%emt 0:01:33]} Rxf2 {[%emt 0:00:10][%mdl 64] [#] Overworked Piece} 24. Kxf2 {[%emt 0:01:17]} Qxh2 {[%emt 0:00:02]} ({And not} 24... Qxg7 25. axb3 Ne5 26. Kg1 $17) 25. Qf1 {[%emt 0:00:59]} Kxg7 {[%emt 0:00:37]} 26. axb3 {[%emt 0:00:13]} fxg4 {[%emt 0:00:18] White got outplayed after the opening.  Weighted Error Value: White=1.49/Black=0.61} 0-1

[Event "21st IPCA World Championship 2022"]
[Site "Ashdod"]
[Date "2022.05.09"]
[Round "1.5"]
[White "Gurbanov, Andrei"]
[Black "Vardi, Moshe"]
[Result "1-0"]
[ECO "A43"]
[WhiteElo "2302"]
[BlackElo "1631"]
[Annotator "TA"]
[PlyCount "53"]
[EventDate "2022.05.09"]
[EventType "swiss"]
[EventCountry "ISR"]
[SourceTitle "playchess.com"]
[Source "ChessBase"]
[SourceQuality "1"]
[TimeControl "5400+30"]

{[%evp 9,53,99,113,112,121,118,129,110,136,135,154,138,188,167,195,174,187,155,164,25,205,166,155,138,254,253,247,248,250,205,230,206,318,304,378,363,961,902,1017,1002,1739,1716,29996,29992,29997,29998]} 1. d4 {[%emt 0:00:04]} c5 {[%emt 0:00:10]} 2. d5 {[%emt 0:00:09]} Nf6 {[%emt 0:01:00]} 3. Nc3 {[%emt 0:03:01]} b6 {[%emt 0:01:06]} 4. e4 {[%emt 0:00:58] [#]} d6 $146 {[%emt 0:00:42]} ({Predecessor:} 4... e6 5. Bb5 Bb7 6. Nf3 exd5 7. exd5 Nxd5 8. Nxd5 Nc6 {1-0 (8) Applegarth,R-Stephens,K IECG email 1998}) 5. f4 {[%emt 0:01:02]} e5 {[%emt 0:01:43]} 6. fxe5 {[%emt 0:04:34] A43: Schmid Benoni.} dxe5 {[%emt 0:00:50]} 7. Nf3 {[%emt 0:01:31]} Bd6 {[%emt 0:02:01]} 8. Bg5 {[%emt 0:01:24] White is better.} h6 {[%emt 0:00:51]} 9. Bh4 {[%emt 0:00:09]} Bg4 {[%emt 0:01:12]} 10. Bb5+ {[%emt 0:01:24]} Nbd7 {[%emt 0:01:19]} (10... Kf8 $16 {is a better defense.} 11. h3 Bh5) 11. h3 $18 {[%emt 0:00:17]} Bh5 {[%emt 0:01:57]} 12. Bc6 $36 {[%emt 0:01:14][%mdl 2048] [#] And now Nb5 would win. Black is under strong pressure.} Rc8 {[%emt 0:02:04]} 13. Nb5 {[%emt 0:04:24]} Bb8 {[%emt 0:01:46]} 14. Bb7 {[%emt 0:02:43]} ({White should try} 14. g4 $18 Bg6 15. Nd2 (15. Bxf6 Qxf6 16. Qe2 Rxc6 $14)) 14... Rc7 $2 {[%emt 0:08:05] Loses the game.} 15. Nxc7+ {[%emt 0:00:48]} Qxc7 {[%emt 0:00:08]} 16. Bxf6 {[%emt 0:00:18]} Nxf6 {[%emt 0:00:18]} (16... Qxb7 $16 17. Bh4 (17. Bxg7 Rh7 $14) 17... g5) 17. Bc6+ {[%emt 0:00:14]} Kf8 {[%emt 0:00:46]} 18. Qd3 {[%emt 0:00:53]} Qe7 {[%emt 0:03:13]} 19. O-O {[%emt 0:02:48][%cal Bh1f1,Bf1f2,Bf2f6,Bf6f7][%mdl 32]} Bd6 {[%emt 0:00:34]} 20. Nh4 {[%emt 0:00:46]} g6 {[%emt 0:04:35]} (20... Kg8 $142 21. Bb5 Kh7) 21. c4 {[%emt 0:02:29]} a6 {[%emt 0:01:17]} 22. Rf2 {[%emt 0:00:35] Raf1 is the strong threat.} b5 $2 {[%emt 0:00:27]} (22... Rh7 23. g4 Nxe4) 23. Raf1 {[%emt 0:00:23]} bxc4 {[%emt 0:01:27]} 24. Qxc4 {[%emt 0:00:19]} Qd8 {[%emt 0:04:14]} 25. Rxf6 {[%emt 0:00:16]} Be7 {[%emt 0:00:15]} 26. Rxf7+ {[%emt 0:00:07]} Kg8 {[%emt 0:00:04] [#]} 27. d6 $1 {[%emt 0:00:15] Weighted Error Value: White=0.25 (precise) /Black=0.90} 1-0